[Event "Early-Titled-Tuesday-Blitz-March-26-2024"]
[Site "Chess.com"]
[Date "2024.03.26"]
[Round "6"]
[White "MightyGMpretender"]
[Black "Rud_Makarian"]
[Result "0-1"]
[WhiteElo "2771"]
[BlackElo "3085"]
[TimeControl "180+1"]
[EndTime "9:05:39 PDT"]
[Termination "Rud_Makarian won on time"]

1. Nf3 {[%clk 0:03:00.9]} 1... Nf6 {[%clk 0:02:52.2]} 2. c4 {[%clk 0:03:00.7]}
2... g6 {[%clk 0:02:51.2]} 3. g3 {[%clk 0:02:59.8]} 3... Bg7 {[%clk 0:02:52.1]}
4. Bg2 {[%clk 0:03:00.4]} 4... O-O {[%clk 0:02:52.4]} 5. O-O {[%clk 0:03:01.2]}
5... d6 {[%clk 0:02:52.8]} 6. Nc3 {[%clk 0:03:00.7]} 6... c6 {[%clk 0:02:53.7]}
7. d3 {[%clk 0:02:58.2]} 7... e5 {[%clk 0:02:53]} 8. b4 {[%clk 0:02:48.6]} 8...
h6 {[%clk 0:02:50.3]} 9. a4 {[%clk 0:02:44.8]} 9... a6 {[%clk 0:02:47.9]} 10.
Bd2 {[%clk 0:02:42.2]} 10... Be6 {[%clk 0:02:48.2]} 11. b5 {[%clk 0:02:42.3]}
11... Nbd7 {[%clk 0:02:44.2]} 12. Ne1 {[%clk 0:02:34.2]} 12... axb5 {[%clk
0:02:42.3]} 13. axb5 {[%clk 0:02:33.6]} 13... d5 {[%clk 0:02:42]} 14. bxc6
{[%clk 0:02:17.9]} 14... bxc6 {[%clk 0:02:41.8]} 15. cxd5 {[%clk 0:02:17.9]}
15... cxd5 {[%clk 0:02:42.7]} 16. d4 {[%clk 0:02:15.8]} 16... e4 {[%clk
0:02:39.6]} 17. Nc2 {[%clk 0:02:14]} 17... Nb6 {[%clk 0:02:28.8]} 18. Bf4 {[%clk
0:02:00]} 18... Nc4 {[%clk 0:02:27.1]} 19. Ne3 {[%clk 0:01:57.2]} 19... Nxe3
{[%clk 0:02:27.1]} 20. Bxe3 {[%clk 0:01:57.3]} 20... Qd7 {[%clk 0:02:26.3]} 21.
Na4 {[%clk 0:01:54]} 21... Qe7 {[%clk 0:02:13.4]} 22. Nc5 {[%clk 0:01:46.8]}
22... Nd7 {[%clk 0:02:05.1]} 23. Rxa8 {[%clk 0:01:08.1]} 23... Rxa8 {[%clk
0:02:06]} 24. Qd2 {[%clk 0:01:08.5]} 24... Kh7 {[%clk 0:02:00.2]} 25. Nxd7
{[%clk 0:01:05.1]} 25... Qxd7 {[%clk 0:01:59]} 26. Rc1 {[%clk 0:01:03.4]} 26...
Ra4 {[%clk 0:01:49.5]} 27. h4 {[%clk 0:00:58.6]} 27... Qa7 {[%clk 0:01:47.1]}
28. Rd1 {[%clk 0:00:55.6]} 28... Bg4 {[%clk 0:01:41]} 29. f3 {[%clk 0:00:52]}
29... exf3 {[%clk 0:01:34.8]} 30. exf3 {[%clk 0:00:52.3]} 30... Ra2 {[%clk
0:01:25.3]} 31. Qe1 {[%clk 0:00:42.4]} 31... Be6 {[%clk 0:01:24.2]} 32. h5
{[%clk 0:00:34.2]} 32... gxh5 {[%clk 0:01:21.9]} 33. Qc3 {[%clk 0:00:22.6]}
33... Bf5 {[%clk 0:01:17.4]} 34. Bf1 {[%clk 0:00:20.5]} 34... Ra3 {[%clk
0:01:09.2]} 35. Qd2 {[%clk 0:00:20.2]} 35... Bg6 {[%clk 0:00:59.9]} 36. Be2
{[%clk 0:00:14.1]} 36... Ra2 {[%clk 0:00:53.8]} 37. Qe1 {[%clk 0:00:14.3]} 37...
Qe7 {[%clk 0:00:46.2]} 38. Bf1 {[%clk 0:00:14.4]} 38... Bf6 {[%clk 0:00:41.7]}
39. Bf2 {[%clk 0:00:13.2]} 39... Qd6 {[%clk 0:00:35.3]} 40. Rd2 {[%clk
0:00:12.7]} 40... Ra3 {[%clk 0:00:34.3]} 41. Kg2 {[%clk 0:00:12.4]} 41... Qd7
{[%clk 0:00:30]} 42. Be3 {[%clk 0:00:07]} 42... Qf5 {[%clk 0:00:25.7]} 43. Qf2
{[%clk 0:00:07]} 43... Bg5 {[%clk 0:00:23.6]} 44. Re2 {[%clk 0:00:02.3]} 44...
Rc3 {[%clk 0:00:13.7]} 45. Re1 {[%clk 0:00:01.9]} 45... Bd8 {[%clk 0:00:05.2]}
46. Re2 {[%clk 0:00:02.2]} 46... Bc7 {[%clk 0:00:05.4]} 47. Re1 {[%clk
0:00:02.1]} 47... Bd6 {[%clk 0:00:05.7]} 48. Bd2 {[%clk 0:00:02.4]} 48... Ra3
{[%clk 0:00:05.3]} 49. Re3 {[%clk 0:00:02.4]} 49... Qf6 {[%clk 0:00:05.8]} 50.
Rxa3 {[%clk 0:00:02]} 50... h4 {[%clk 0:00:04.9]} 51. Qe3 {[%clk 0:00:01.7]}
51... Bf5 {[%clk 0:00:04.7]} 0-1

[Event "Early-Titled-Tuesday-Blitz-March-26-2024"]
[Site "Chess.com"]
[Date "2024.03.26"]
[Round "6"]
[White "MaiqMaster"]
[Black "yaguigor"]
[Result "1/2-1/2"]
[WhiteElo "2401"]
[BlackElo "2576"]
[TimeControl "180+1"]
[EndTime "9:05:41 PDT"]
[Termination "Game drawn - insufficient material"]

1. e4 {[%clk 0:03:00.9]} 1... e5 {[%clk 0:02:56.8]} 2. Nf3 {[%clk 0:03:00.6]}
2... Nc6 {[%clk 0:02:55.9]} 3. d4 {[%clk 0:03:00.8]} 3... exd4 {[%clk
0:02:55.1]} 4. Nxd4 {[%clk 0:03:01.7]} 4... Bc5 {[%clk 0:02:53.1]} 5. Nb3 {[%clk
0:03:01.3]} 5... Bb6 {[%clk 0:02:52.6]} 6. Nc3 {[%clk 0:02:58.5]} 6... Nf6
{[%clk 0:02:50.7]} 7. Bg5 {[%clk 0:02:45.1]} 7... h6 {[%clk 0:02:49]} 8. Bh4
{[%clk 0:02:45.1]} 8... Qe7 {[%clk 0:02:37.5]} 9. Bd3 {[%clk 0:02:41.7]} 9... g5
{[%clk 0:02:29]} 10. Bg3 {[%clk 0:02:40.6]} 10... d5 {[%clk 0:02:29.5]} 11. Qe2
{[%clk 0:02:33.4]} 11... Bg4 {[%clk 0:02:11.7]} 12. f3 {[%clk 0:02:31.1]} 12...
Be6 {[%clk 0:02:11.1]} 13. exd5 {[%clk 0:02:26.7]} 13... Nxd5 {[%clk 0:02:10.2]}
14. Nxd5 {[%clk 0:02:26.7]} 14... Bxd5 {[%clk 0:02:09.8]} 15. Qxe7+ {[%clk
0:02:27.3]} 15... Nxe7 {[%clk 0:01:55.7]} 16. O-O-O {[%clk 0:02:26.7]} 16...
O-O-O {[%clk 0:01:55.3]} 17. Rhe1 {[%clk 0:02:24.1]} 17... Nc6 {[%clk
0:01:40.9]} 18. h4 {[%clk 0:02:18.3]} 18... f6 {[%clk 0:01:33.9]} 19. Bf5+
{[%clk 0:01:46.8]} 19... Kb8 {[%clk 0:01:33]} 20. Kb1 {[%clk 0:01:18.6]} 20...
a5 {[%clk 0:01:29.4]} 21. Nc1 {[%clk 0:01:13]} 21... a4 {[%clk 0:01:26.1]} 22.
a3 {[%clk 0:01:09.5]} 22... Nd4 {[%clk 0:01:22.2]} 23. Bd3 {[%clk 0:00:59.1]}
23... Rhe8 {[%clk 0:01:08.4]} 24. Ne2 {[%clk 0:00:56]} 24... Nxe2 {[%clk
0:01:01.1]} 25. Rxe2 {[%clk 0:00:56.9]} 25... Rxe2 {[%clk 0:00:51.9]} 26. Bxe2
{[%clk 0:00:57.8]} 26... Kc8 {[%clk 0:00:52]} 27. f4 {[%clk 0:00:43.2]} 27... f5
{[%clk 0:00:25.8]} 28. hxg5 {[%clk 0:00:37.4]} 28... hxg5 {[%clk 0:00:25.3]} 29.
fxg5 {[%clk 0:00:37.2]} 29... Bxg2 {[%clk 0:00:25.3]} 30. Rxd8+ {[%clk
0:00:34.5]} 30... Kxd8 {[%clk 0:00:26.2]} 31. Be5 {[%clk 0:00:25]} 31... Bd5
{[%clk 0:00:20.8]} 32. Bb5 {[%clk 0:00:18.7]} 32... c6 {[%clk 0:00:19.2]} 33.
Bxa4 {[%clk 0:00:18.8]} 33... Be3 {[%clk 0:00:19.8]} 34. g6 {[%clk 0:00:18]}
34... f4 {[%clk 0:00:17.3]} 35. Bb3 {[%clk 0:00:16.4]} 35... Bxb3 {[%clk
0:00:16]} 36. cxb3 {[%clk 0:00:17.3]} 36... Ke7 {[%clk 0:00:16.2]} 37. Kc2
{[%clk 0:00:15.5]} 37... f3 {[%clk 0:00:15.8]} 38. Kd3 {[%clk 0:00:14.5]} 38...
Bc1 {[%clk 0:00:13.8]} 39. g7 {[%clk 0:00:11.4]} 39... Kf7 {[%clk 0:00:13.1]}
40. a4 {[%clk 0:00:09.5]} 40... Kg8 {[%clk 0:00:10.6]} 41. Bd4 {[%clk
0:00:09.6]} 41... Kf7 {[%clk 0:00:10]} 42. Ke4 {[%clk 0:00:08.9]} 42... Bxb2
{[%clk 0:00:08.9]} 43. Bf2 {[%clk 0:00:02]} 43... Bxg7 {[%clk 0:00:08.2]} 44.
Kxf3 {[%clk 0:00:02.6]} 44... Ke6 {[%clk 0:00:09]} 45. Ke2 {[%clk 0:00:03.5]}
45... Kd5 {[%clk 0:00:09.1]} 46. Kd3 {[%clk 0:00:04.4]} 46... Be5 {[%clk
0:00:09.1]} 47. Be1 {[%clk 0:00:05.3]} 47... Bd4 {[%clk 0:00:08.8]} 48. Bc3
{[%clk 0:00:05.7]} 48... Bxc3 {[%clk 0:00:07.7]} 49. Kxc3 {[%clk 0:00:06.6]}
49... Kc5 {[%clk 0:00:07.8]} 50. b4+ {[%clk 0:00:07.2]} 50... Kd5 {[%clk
0:00:08.1]} 51. Kd3 {[%clk 0:00:07.8]} 51... b6 {[%clk 0:00:07]} 52. Kc3 {[%clk
0:00:07.6]} 52... Ke5 {[%clk 0:00:06.5]} 53. Kc4 {[%clk 0:00:07.9]} 53... Kd6
{[%clk 0:00:06.4]} 54. a5 {[%clk 0:00:08.3]} 54... bxa5 {[%clk 0:00:05.6]} 55.
bxa5 {[%clk 0:00:09.2]} 55... Kc7 {[%clk 0:00:05.9]} 56. Kc5 {[%clk 0:00:10.1]}
56... Kb7 {[%clk 0:00:06.2]} 57. a6+ {[%clk 0:00:11]} 57... Kxa6 {[%clk
0:00:06.6]} 58. Kxc6 {[%clk 0:00:11.9]} 1/2-1/2

[Event "Early-Titled-Tuesday-Blitz-March-26-2024"]
[Site "Chess.com"]
[Date "2024.03.26"]
[Round "6"]
[White "EternalNight8"]
[Black "Adar_07"]
[Result "0-1"]
[WhiteElo "2475"]
[BlackElo "2800"]
[TimeControl "180+1"]
[EndTime "9:05:44 PDT"]
[Termination "Adar_07 won by resignation"]

1. d4 {[%clk 0:03:00.9]} 1... Nf6 {[%clk 0:03:00]} 2. Bg5 {[%clk 0:03:01.1]}
2... Ne4 {[%clk 0:02:57.6]} 3. Bf4 {[%clk 0:03:01.3]} 3... c5 {[%clk 0:02:54.7]}
4. f3 {[%clk 0:03:01.6]} 4... Nf6 {[%clk 0:02:54.8]} 5. dxc5 {[%clk 0:03:02]}
5... Qa5+ {[%clk 0:02:39]} 6. Nc3 {[%clk 0:03:02.3]} 6... Nc6 {[%clk 0:02:37]}
7. e4 {[%clk 0:03:01.5]} 7... e5 {[%clk 0:02:36.7]} 8. Bg5 {[%clk 0:02:57.2]}
8... Bxc5 {[%clk 0:02:36.2]} 9. Bxf6 {[%clk 0:02:56.6]} 9... gxf6 {[%clk
0:02:36.8]} 10. Qd2 {[%clk 0:02:51.9]} 10... Bb4 {[%clk 0:02:20.8]} 11. Nge2
{[%clk 0:02:50.3]} 11... d6 {[%clk 0:02:20]} 12. a3 {[%clk 0:02:43.1]} 12... Be6
{[%clk 0:02:19.7]} 13. O-O-O {[%clk 0:02:36.1]} 13... Bxa3 {[%clk 0:02:07.5]}
14. bxa3 {[%clk 0:02:21.1]} 14... Qxa3+ {[%clk 0:02:08.4]} 15. Kb1 {[%clk
0:02:21.5]} 15... Nb4 {[%clk 0:02:08.8]} 16. Nc1 {[%clk 0:01:44.1]} 16... Rc8
{[%clk 0:01:50.1]} 17. Qxd6 {[%clk 0:01:20.5]} 17... Qxc3 {[%clk 0:01:48.3]} 18.
Bb5+ {[%clk 0:01:17.3]} 18... Nc6 {[%clk 0:01:48.6]} 19. Rd3 {[%clk 0:00:54.9]}
19... Qa5 {[%clk 0:01:47.2]} 20. Bxc6+ {[%clk 0:00:52.2]} 20... Rxc6 {[%clk
0:01:42]} 21. Qb8+ {[%clk 0:00:47.9]} 21... Rc8 {[%clk 0:01:41.8]} 22. Qd6
{[%clk 0:00:41.8]} 22... Qc7 {[%clk 0:01:19.9]} 23. Qxc7 {[%clk 0:00:39.7]}
23... Rxc7 {[%clk 0:01:20.8]} 24. Rhd1 {[%clk 0:00:38.2]} 24... Ke7 {[%clk
0:01:20.7]} 25. Nb3 {[%clk 0:00:29.8]} 25... Rhc8 {[%clk 0:01:19.8]} 26. R1d2
{[%clk 0:00:28.9]} 26... b6 {[%clk 0:01:17.1]} 27. g4 {[%clk 0:00:24.5]} 27...
a5 {[%clk 0:01:15.7]} 28. h4 {[%clk 0:00:23.8]} 28... a4 {[%clk 0:01:13.9]} 29.
Nc1 {[%clk 0:00:23.7]} 29... b5 {[%clk 0:01:14]} 30. Ne2 {[%clk 0:00:14.8]}
30... b4 {[%clk 0:01:11.1]} 31. Ng3 {[%clk 0:00:14.6]} 31... Rc3 {[%clk
0:00:32.7]} 32. Nf5+ {[%clk 0:00:11.9]} 32... Bxf5 {[%clk 0:00:33]} 33. exf5
{[%clk 0:00:12.8]} 33... Rxd3 {[%clk 0:00:33.5]} 34. Rxd3 {[%clk 0:00:13.2]}
34... Rd8 {[%clk 0:00:32]} 35. Re3 {[%clk 0:00:12.3]} 35... Rd4 {[%clk
0:00:32.7]} 36. Kb2 {[%clk 0:00:11.4]} 36... Kd6 {[%clk 0:00:30.4]} 37. c3
{[%clk 0:00:11.3]} 37... bxc3+ {[%clk 0:00:19.4]} 38. Rxc3 {[%clk 0:00:12.2]}
38... e4 {[%clk 0:00:14.7]} 39. fxe4 {[%clk 0:00:11.8]} 39... Rxe4 {[%clk
0:00:15.6]} 40. Rg3 {[%clk 0:00:11.2]} 40... Ke5 {[%clk 0:00:15.6]} 41. Ka3
{[%clk 0:00:10.8]} 41... Kf4 {[%clk 0:00:15.6]} 42. Rg1 {[%clk 0:00:10.9]} 42...
Kf3 {[%clk 0:00:16.1]} 43. g5 {[%clk 0:00:10.5]} 43... Rxh4 {[%clk 0:00:16.7]}
44. gxf6 {[%clk 0:00:10.6]} 44... Rh6 {[%clk 0:00:13.5]} 45. Rg7 {[%clk
0:00:10.7]} 45... Rxf6 {[%clk 0:00:13.6]} 46. Rxh7 {[%clk 0:00:11.1]} 46... Rxf5
{[%clk 0:00:13.6]} 47. Kxa4 {[%clk 0:00:11.3]} 47... Rf4+ {[%clk 0:00:11.9]} 48.
Kb3 {[%clk 0:00:11.4]} 48... f5 {[%clk 0:00:12.8]} 49. Kc2 {[%clk 0:00:11.3]}
49... Re4 {[%clk 0:00:13]} 50. Kd2 {[%clk 0:00:10.2]} 50... Re8 {[%clk
0:00:12.5]} 51. Rf7 {[%clk 0:00:07.5]} 51... f4 {[%clk 0:00:12.8]} 52. Rf6
{[%clk 0:00:07.8]} 52... Kg3 {[%clk 0:00:12.9]} 53. Rg6+ {[%clk 0:00:07.8]}
53... Kf2 {[%clk 0:00:13.3]} 54. Rf6 {[%clk 0:00:08.1]} 54... Rd8+ {[%clk
0:00:13.9]} 55. Kc3 {[%clk 0:00:07.5]} 55... f3 {[%clk 0:00:14.6]} 56. Rf7
{[%clk 0:00:07.4]} 56... Ke2 {[%clk 0:00:13.8]} 57. Re7+ {[%clk 0:00:07.5]}
57... Kf1 {[%clk 0:00:13.7]} 58. Rf7 {[%clk 0:00:07.4]} 58... f2 {[%clk
0:00:14.3]} 59. Kc2 {[%clk 0:00:07.7]} 59... Rg8 {[%clk 0:00:14]} 60. Kd2 {[%clk
0:00:07]} 60... Kg1 {[%clk 0:00:14.3]} 61. Ke2 {[%clk 0:00:03.6]} 61... Re8+
{[%clk 0:00:14.4]} 62. Kd3 {[%clk 0:00:03.9]} 62... f1=Q+ {[%clk 0:00:14.4]} 0-1

[Event "Early-Titled-Tuesday-Blitz-March-26-2024"]
[Site "Chess.com"]
[Date "2024.03.26"]
[Round "6"]
[White "Felix-Rose"]
[Black "Lucky_Puncher"]
[Result "1/2-1/2"]
[WhiteElo "2225"]
[BlackElo "2469"]
[TimeControl "180+1"]
[EndTime "9:05:44 PDT"]
[Termination "Game drawn - insufficient material"]

1. e4 {[%clk 0:03:00.1]} 1... c5 {[%clk 0:02:56.4]} 2. Nf3 {[%clk 0:03:00.4]}
2... d6 {[%clk 0:02:56.6]} 3. d4 {[%clk 0:03:00.8]} 3... cxd4 {[%clk 0:02:57.5]}
4. Nxd4 {[%clk 0:03:01.7]} 4... Nf6 {[%clk 0:02:58]} 5. Nc3 {[%clk 0:03:01.4]}
5... a6 {[%clk 0:02:58.2]} 6. Be3 {[%clk 0:03:01.2]} 6... e5 {[%clk 0:02:57.3]}
7. Nb3 {[%clk 0:03:01.6]} 7... Be6 {[%clk 0:02:57.4]} 8. f3 {[%clk 0:03:01.2]}
8... Nbd7 {[%clk 0:02:57.3]} 9. Qd2 {[%clk 0:03:02]} 9... Rc8 {[%clk 0:02:57.3]}
10. O-O-O {[%clk 0:03:00.8]} 10... h5 {[%clk 0:02:55.7]} 11. Kb1 {[%clk
0:02:58.9]} 11... Be7 {[%clk 0:02:55.4]} 12. h3 {[%clk 0:02:57.6]} 12... h4
{[%clk 0:02:54.7]} 13. Be2 {[%clk 0:02:43.5]} 13... O-O {[%clk 0:02:53.4]} 14.
f4 {[%clk 0:02:43.8]} 14... Rxc3 {[%clk 0:02:50.3]} 15. Qxc3 {[%clk 0:02:41]}
15... Nxe4 {[%clk 0:02:50.8]} 16. Qd3 {[%clk 0:02:28.5]} 16... Ng3 {[%clk
0:02:47.8]} 17. Rhe1 {[%clk 0:02:23.9]} 17... d5 {[%clk 0:02:44.2]} 18. fxe5
{[%clk 0:02:14.1]} 18... Nxe5 {[%clk 0:02:44]} 19. Qd4 {[%clk 0:02:09.4]} 19...
Nc6 {[%clk 0:02:44.2]} 20. Qb6 {[%clk 0:02:05]} 20... Qc8 {[%clk 0:02:28]} 21.
Bf3 {[%clk 0:01:58.5]} 21... Bd8 {[%clk 0:02:05.3]} 22. Qc5 {[%clk 0:01:52.6]}
22... b6 {[%clk 0:02:05.4]} 23. Qc3 {[%clk 0:01:43.4]} 23... Bf6 {[%clk
0:02:05.2]} 24. Nd4 {[%clk 0:01:36.2]} 24... Nxd4 {[%clk 0:01:30.1]} 25. Qxc8
{[%clk 0:01:32.8]} 25... Rxc8 {[%clk 0:01:31]} 26. Bxd4 {[%clk 0:01:33.2]} 26...
Bf5 {[%clk 0:01:27.3]} 27. Bxf6 {[%clk 0:01:16.1]} 27... Bxc2+ {[%clk
0:01:27.4]} 28. Ka1 {[%clk 0:01:14.6]} 28... Bxd1 {[%clk 0:01:28]} 29. Rxd1
{[%clk 0:01:10.3]} 29... gxf6 {[%clk 0:01:28.3]} 30. Bxd5 {[%clk 0:01:06.6]}
30... Rc5 {[%clk 0:01:20.9]} 31. Kb1 {[%clk 0:00:57.1]} 31... Nf5 {[%clk
0:01:17.4]} 32. Bf3 {[%clk 0:00:55.2]} 32... Kg7 {[%clk 0:01:14.1]} 33. Re1
{[%clk 0:00:44.2]} 33... a5 {[%clk 0:01:08.4]} 34. Re4 {[%clk 0:00:44.3]} 34...
b5 {[%clk 0:00:58.9]} 35. Rg4+ {[%clk 0:00:43.7]} 35... Kf8 {[%clk 0:00:58.9]}
36. Be4 {[%clk 0:00:43.5]} 36... Nd4 {[%clk 0:00:38.7]} 37. Rxh4 {[%clk
0:00:39.2]} 37... Ne2 {[%clk 0:00:39.1]} 38. Bc2 {[%clk 0:00:38]} 38... f5
{[%clk 0:00:31.9]} 39. a3 {[%clk 0:00:37.5]} 39... Kg7 {[%clk 0:00:29]} 40. g4
{[%clk 0:00:34.2]} 40... f4 {[%clk 0:00:28.5]} 41. Rh5 {[%clk 0:00:33.3]} 41...
Rxh5 {[%clk 0:00:16.5]} 42. gxh5 {[%clk 0:00:34]} 42... f3 {[%clk 0:00:14.2]}
43. Bd3 {[%clk 0:00:29.1]} 43... b4 {[%clk 0:00:14.7]} 44. axb4 {[%clk 0:00:29]}
44... axb4 {[%clk 0:00:15.6]} 45. Kc2 {[%clk 0:00:29.1]} 45... Nd4+ {[%clk
0:00:15.9]} 46. Kd2 {[%clk 0:00:29.1]} 46... Kf6 {[%clk 0:00:13]} 47. Ke3 {[%clk
0:00:29.6]} 47... Ne6 {[%clk 0:00:10.2]} 48. Kxf3 {[%clk 0:00:28.1]} 48... Kg5
{[%clk 0:00:10.7]} 49. Be2 {[%clk 0:00:27]} 49... Nd4+ {[%clk 0:00:11]} 50. Ke3
{[%clk 0:00:27.5]} 50... Nf5+ {[%clk 0:00:11.1]} 51. Kd3 {[%clk 0:00:26.8]}
51... Ng3 {[%clk 0:00:11.7]} 52. Bg4 {[%clk 0:00:26.8]} 52... f5 {[%clk
0:00:11.6]} 53. Bxf5 {[%clk 0:00:26.4]} 53... Nxf5 {[%clk 0:00:09.8]} 54. Kc4
{[%clk 0:00:27.3]} 54... Kxh5 {[%clk 0:00:09.9]} 55. Kxb4 {[%clk 0:00:27.6]}
55... Kh4 {[%clk 0:00:10.8]} 56. Kc5 {[%clk 0:00:28]} 56... Ne7 {[%clk
0:00:07.3]} 57. b4 {[%clk 0:00:28.9]} 57... Kxh3 {[%clk 0:00:07]} 58. b5 {[%clk
0:00:29.3]} 58... Nc8 {[%clk 0:00:07.5]} 59. Kc6 {[%clk 0:00:29.6]} 59... Na7+
{[%clk 0:00:07.8]} 60. Kb6 {[%clk 0:00:30.3]} 60... Nxb5 {[%clk 0:00:08.7]}
1/2-1/2

[Event "Early-Titled-Tuesday-Blitz-March-26-2024"]
[Site "Chess.com"]
[Date "2024.03.26"]
[Round "6"]
[White "Gennady_Kozlov"]
[Black "GiorgianBarbosa"]
[Result "1/2-1/2"]
[WhiteElo "2657"]
[BlackElo "2514"]
[TimeControl "180+1"]
[EndTime "9:05:48 PDT"]
[Termination "Game drawn - insufficient material"]

1. b3 {[%clk 0:02:40.2]} 1... Nf6 {[%clk 0:02:58.6]} 2. Bb2 {[%clk 0:02:40]}
2... e6 {[%clk 0:02:58.9]} 3. e3 {[%clk 0:02:40]} 3... d5 {[%clk 0:02:59.2]} 4.
f4 {[%clk 0:02:40.5]} 4... Be7 {[%clk 0:03:00.1]} 5. Nf3 {[%clk 0:02:40.4]} 5...
O-O {[%clk 0:03:01]} 6. Be2 {[%clk 0:02:40.5]} 6... b6 {[%clk 0:03:01.9]} 7. O-O
{[%clk 0:02:41]} 7... Ba6 {[%clk 0:03:02.5]} 8. Qe1 {[%clk 0:02:41.5]} 8... Bxe2
{[%clk 0:03:02.3]} 9. Qxe2 {[%clk 0:02:42.4]} 9... c5 {[%clk 0:03:02.5]} 10. d3
{[%clk 0:02:41.8]} 10... Nc6 {[%clk 0:03:02.4]} 11. Ne5 {[%clk 0:02:42.7]} 11...
Qc7 {[%clk 0:02:57.9]} 12. Nd2 {[%clk 0:02:40.9]} 12... Nd7 {[%clk 0:02:56.8]}
13. Nxd7 {[%clk 0:02:39.3]} 13... Qxd7 {[%clk 0:02:56.2]} 14. Qg4 {[%clk
0:02:39.8]} 14... f6 {[%clk 0:02:52.4]} 15. Nf3 {[%clk 0:02:37.9]} 15... Rf7
{[%clk 0:02:46.5]} 16. Rae1 {[%clk 0:02:36.4]} 16... f5 {[%clk 0:02:46]} 17. Qh5
{[%clk 0:02:32.7]} 17... Bf6 {[%clk 0:02:45.2]} 18. Bxf6 {[%clk 0:02:21.8]}
18... Rxf6 {[%clk 0:02:46.1]} 19. Ng5 {[%clk 0:02:21.1]} 19... Rh6 {[%clk
0:02:43.3]} 20. Qf3 {[%clk 0:02:18.7]} 20... Rf6 {[%clk 0:02:37.8]} 21. Qh3
{[%clk 0:02:16.1]} 21... Rh6 {[%clk 0:02:36.9]} 22. Qg3 {[%clk 0:02:15.7]} 22...
Rg6 {[%clk 0:02:36.3]} 23. Qh4 {[%clk 0:02:15.4]} 23... Rh6 {[%clk 0:02:35.9]}
24. Qf2 {[%clk 0:02:15.6]} 24... Rf6 {[%clk 0:02:35.7]} 25. h3 {[%clk
0:02:13.1]} 25... e5 {[%clk 0:02:25.7]} 26. fxe5 {[%clk 0:02:08.8]} 26... Nxe5
{[%clk 0:02:26.4]} 27. Qf4 {[%clk 0:02:08.9]} 27... Nf7 {[%clk 0:02:23.4]} 28.
Nxf7 {[%clk 0:02:07.2]} 28... Rxf7 {[%clk 0:02:22.8]} 29. e4 {[%clk 0:02:01.6]}
29... fxe4 {[%clk 0:02:22.8]} 30. Qxf7+ {[%clk 0:02:02.1]} 30... Qxf7 {[%clk
0:02:23.4]} 31. Rxf7 {[%clk 0:02:02.1]} 31... Kxf7 {[%clk 0:02:23.7]} 32. dxe4
{[%clk 0:02:02.8]} 32... dxe4 {[%clk 0:02:24.1]} 33. Rxe4 {[%clk 0:02:01.6]}
33... Rd8 {[%clk 0:02:24.2]} 34. Re2 {[%clk 0:02:01]} 34... Rd1+ {[%clk
0:02:19.7]} 35. Kf2 {[%clk 0:01:59.9]} 35... Rc1 {[%clk 0:02:19.9]} 36. a4
{[%clk 0:01:59.8]} 36... Rd1 {[%clk 0:02:15.7]} 37. Ke3 {[%clk 0:01:59.2]} 37...
Kf6 {[%clk 0:02:12.9]} 38. Rf2+ {[%clk 0:01:57.5]} 38... Ke7 {[%clk 0:02:10]}
39. Rf3 {[%clk 0:01:52.4]} 39... Rg1 {[%clk 0:02:07.3]} 40. Rg3 {[%clk
0:01:52.3]} 40... g6 {[%clk 0:02:07.1]} 41. Kd3 {[%clk 0:01:51.2]} 41... Rf1
{[%clk 0:02:03]} 42. Kc4 {[%clk 0:01:49.9]} 42... Kd7 {[%clk 0:02:00.4]} 43. Kb5
{[%clk 0:01:48.9]} 43... Rf2 {[%clk 0:01:36.8]} 44. c3 {[%clk 0:01:33.9]} 44...
Rb2 {[%clk 0:01:33.8]} 45. c4 {[%clk 0:01:33.9]} 45... Kc7 {[%clk 0:01:32]} 46.
Ka6 {[%clk 0:01:33.4]} 46... Kb8 {[%clk 0:01:30.9]} 47. h4 {[%clk 0:01:32.5]}
47... Rb1 {[%clk 0:01:21]} 48. Rf3 {[%clk 0:01:20.7]} 48... Rb2 {[%clk
0:01:18.2]} 49. g3 {[%clk 0:01:20.2]} 49... h5 {[%clk 0:01:17.6]} 50. Rf8+
{[%clk 0:01:18.9]} 50... Kc7 {[%clk 0:01:17.7]} 51. Rf7+ {[%clk 0:01:18.5]}
51... Kb8 {[%clk 0:01:08]} 52. Rxa7 {[%clk 0:01:13.5]} 52... Rxb3 {[%clk
0:01:05.6]} 53. Rb7+ {[%clk 0:01:14.4]} 53... Kc8 {[%clk 0:01:05.3]} 54. Rxb6
{[%clk 0:01:15.3]} 54... Rxg3 {[%clk 0:00:58]} 55. Rc6+ {[%clk 0:01:13.9]} 55...
Kb8 {[%clk 0:00:51.9]} 56. Rxc5 {[%clk 0:01:14.8]} 56... Rg4 {[%clk 0:00:51.9]}
57. Kb6 {[%clk 0:01:04.2]} 57... Rxh4 {[%clk 0:00:49.4]} 58. a5 {[%clk
0:01:04.5]} 58... Rh1 {[%clk 0:00:47]} 59. Rg5 {[%clk 0:01:02.8]} 59... Rb1+
{[%clk 0:00:38]} 60. Kc6 {[%clk 0:01:01.7]} 60... Ra1 {[%clk 0:00:36.5]} 61.
Rxg6 {[%clk 0:01:00.8]} 61... Rxa5 {[%clk 0:00:32.6]} 62. Rg8+ {[%clk
0:01:01.2]} 62... Ka7 {[%clk 0:00:24.2]} 63. c5 {[%clk 0:01:02.1]} 63... Ra6+
{[%clk 0:00:21.5]} 64. Kc7 {[%clk 0:01:00.5]} 64... Rh6 {[%clk 0:00:21.8]} 65.
c6 {[%clk 0:00:58.5]} 65... h4 {[%clk 0:00:20.7]} 66. Rg1 {[%clk 0:00:56.7]}
66... Rh7+ {[%clk 0:00:20.4]} 67. Kd6 {[%clk 0:00:56.6]} 67... Rh6+ {[%clk
0:00:16.6]} 68. Kd5 {[%clk 0:00:53.8]} 68... Rh5+ {[%clk 0:00:16.3]} 69. Ke6
{[%clk 0:00:52.3]} 69... Kb6 {[%clk 0:00:15.9]} 70. Kf6 {[%clk 0:00:49.1]} 70...
Kxc6 {[%clk 0:00:15.7]} 71. Kg6 {[%clk 0:00:49.2]} 71... Rh8 {[%clk 0:00:16]}
72. Rh1 {[%clk 0:00:49.4]} 72... h3 {[%clk 0:00:15.6]} 73. Kg5 {[%clk
0:00:49.4]} 73... h2 {[%clk 0:00:15.8]} 74. Kg4 {[%clk 0:00:50.3]} 74... Kd5
{[%clk 0:00:16.1]} 75. Kg3 {[%clk 0:00:51.2]} 75... Ke4 {[%clk 0:00:15.9]} 76.
Rxh2 {[%clk 0:00:51.7]} 76... Rxh2 {[%clk 0:00:15.9]} 77. Kxh2 {[%clk
0:00:52.6]} 1/2-1/2